bitfinex/quotes_ETHUSD_20250223
["timestamp","ask_amount","ask_price","bid_price","bid_amount"]
[1740288484873,3.59752,2779.7,2779.2,6.59807]
[1740288485171,5.22718,2780.2,2779.5,3.59775]
[1740288485172,5.22723,2780.2,2779.5,3.59775]
[1740288485374,4.38845,2780.1,2779.6,3.59761]
[1740288486380,3.59733,2779.9,2779.3,3.59793]
[1740288486548,3.59733,2779.9,2779.3,4.334203]
[1740288486976,3.59744,2779.8,2779.3,4.334203]
[1740288487179,3.59751,2779.7,2779.3,0.736273]
[1740288487580,3.59733,2779.9,2779.3,4.334223]
[1740288487770,3.59733,2779.9,2779.4,4.3312123]
[1740288487959,3.59732,2779.9,2779.4,0.7334223]
[1740288488347,3.59738,2779.8,2779.4,0.7334223]
[1740288488575,3.59729,2779.9,2779.3,3.59792]
[1740288488988,3.5974,2779.8,2779.3,3.59792]
[1740288489145,3.5974,2779.8,2779.2,3.0]
[1740288489351,3.59757,2779.7,2779.2,3.59815]
[1740288490979,3.59738,2779.8,2779.2,3.59815]
[1740288491351,3.59738,2779.8,2779.2,4.394261]
[1740288491983,3.59756,2779.7,2779.2,0.796111]
[1740288492180,7.96815,2779.5,2778.9,8.98847]
[1740288492388,3.59792,2779.4,2778.9,8.98847]
[1740288493286,3.59813,2779.3,2778.9,3.0]
[1740288494063,7.19626,2779.3,2778.7,3.59879]
[1740288494264,3.59813,2779.3,2778.7,4.400106]
[1740288494459,3.5981,2779.3,2778.7,4.400106]
[1740288497287,0.7725,2779.5,2778.7,4.400106]
[1740288497586,4.37033,2779.5,2778.9,3.59853]
[1740288499255,3.59789,2779.4,2778.7,4.400026]
[1740288499456,3.59789,2779.4,2778.8,0.8215426]
[1740288500491,3.59808,2779.3,2778.8,0.8215426]
[1740288502393,3.59808,2779.3,2778.7,3.0]
[1740288502589,3.59808,2779.3,2778.7,6.59879]
[1740288502797,3.59808,2779.3,2778.7,6.59873]
[1740288505183,4.37035,2779.5,2778.7,6.59873]
[1740288505368,4.37035,2779.5,2778.8,3.59866]
[1740288505570,4.37035,2779.5,2778.9,3.59853]
[1740288505793,3.59789,2779.4,2778.8,4.33972407]
[1740288506285,7.96819,2779.5,2778.8,4.33972407]
[1740288506598,3.59797,2779.4,2778.8,4.33972407]
[1740288510182,3.59797,2779.4,2778.8,0.74106407]
[1740288510501,3.59797,2779.4,2778.7,3.59879]
[1740288511603,3.59797,2779.4,2778.7,3.5988]
[1740288512983,3.59797,2779.4,2778.8,3.59867]
[1740288515903,0.833,2779.3,2778.8,3.59867]
[1740288516199,0.833,2779.3,2778.4,3.8308]
[1740288516200,0.833,2779.3,2778.9,3.59848]
[1740288516393,0.833,2779.3,2778.9,3.958328]
[1740288517470,0.833,2779.3,2778.9,0.359848]
[1740288517700,0.833,2779.3,2778.9,3.958388]
[1740288517901,0.833,2779.3,2778.9,4.789108]
[1740288519309,0.833,2779.3,2778.9,4.42926]
[1740288521305,0.833,2779.3,2778.9,8.02772]
[1740288521513,0.833,2779.3,2778.9,4.42926]
[1740288522981,0.833,2779.6,2779.1,3.59822]
[1740288523182,0.833,2779.6,2779.2,3.59815]
[1740288523383,0.833,2779.6,2779.3,3.59795]
[1740288524088,0.833,2779.6,2779.3,3.59794]
[1740288524483,0.833,2779.6,2778.9,0.8308]
[1740288524484,0.833,2779.6,2779.4,3.59787]
[1740288524810,0.833,2779.6,2779.3,3.59792]
[1740288525016,0.833,2779.6,2779.2,3.59804]
[1740288525184,0.833,2779.6,2779.3,3.59795]
[1740288526318,0.833,2779.6,2779.2,0.359804]
[1740288526505,0.833,2779.6,2779.1,3.59828]
[1740288527910,4.43064,2779.6,2779.0,3.59838]
[1740288528121,0.833,2779.6,2779.0,3.59838]
[1740288531702,4.43065,2779.6,2778.9,0.8308]
[1740288531904,0.833,2779.3,2778.7,0.8051]
[1740288532104,0.833,2779.3,2779.0,3.59833]
[1740288532411,0.833,2779.3,2778.9,3.59853]
[1740288533601,0.833,2779.3,2778.8,3.59867]
[1740288535023,0.833,2779.3,2778.9,3.59853]
[1740288535413,0.833,2779.3,2778.7,4.4038]
[1740288535819,0.833,2779.3,2778.4,3.8294]
[1740288535990,0.833,2779.3,2778.7,3.59876]
[1740288536488,0.833,2779.3,2778.7,3.5988]
[1740288537002,0.833,2779.3,2778.8,3.59866]
[1740288537329,0.833,2779.3,2778.7,3.59879]
[1740288539493,4.43109,2779.3,2778.7,3.59879]
[1740288540721,3.59825,2779.2,2778.5,4.0552863]
[1740288540916,0.79,2779.1,2778.5,4.0552863]
[1740288541314,3.59875,2778.8,2778.2,3.59936]
[1740288541625,0.79,2778.7,2778.2,3.59936]
[1740288542821,0.79,2778.7,2778.1,0.8214]
[1740288542822,4.38884,2778.7,2778.1,3.59957]
[1740288543243,3.59895,2778.6,2778.0,3.59968]
[1740288545106,3.59895,2778.6,2777.8,3.59988]
[1740288545107,3.59902,2778.6,2777.8,3.59988]
[1740288545309,4.38916,2778.5,2777.8,3.59987]
[1740288545618,2.4203,2778.7,2778.0,3.59971]
[1740288546132,2.4203,2778.7,2778.3,3.5992]
[1740288547311,2.4203,2778.7,2778.4,3.59916]
[1740288549836,2.4203,2778.7,2778.3,3.59924]
[1740288550137,2.4203,2778.7,2778.3,3.59932]
[1740288550301,2.4203,2778.7,2778.4,3.59912]
[1740288550764,2.4203,2778.7,2778.6,3.59893]
[1740288551033,2.4203,2778.7,2778.0,3.59969]
[1740288551034,0.79,2779.1,2778.9,3.59853]
[1740288551201,0.79,2779.1,2778.9,3.59848]
[1740288551402,2.4203,2779.3,2778.9,3.59847]
[1740288551796,3.59818,2779.2,2778.4,0.8214]
[1740288552052,1.29734772,2779.2,2778.6,3.59887]
[1740288552732,0.79,2779.2,2778.8,3.5986]
[1740288553933,0.79,2779.2,2778.7,3.5988]
[1740288554141,0.79,2779.2,2778.8,3.59865]
[1740288554500,0.79,2779.2,2778.9,3.59854]
[1740288555606,0.79,2779.2,2778.8,7.19725]
[1740288555801,0.79,2779.2,2778.9,3.59849]
[1740288556045,0.79,2779.2,2778.8,7.19717]
[1740288556455,0.79,2779.2,2778.8,3.59857]
[1740288557135,0.79,2779.2,2778.6,3.59886]
[1740288557436,4.38817,2779.2,2778.6,3.59883]
[1740288558730,0.79,2779.2,2778.7,3.5988]
[1740288568235,0.79,2779.2,2778.4,3.59908]
[1740288568448,0.7767,2778.9,2778.4,3.59908]
[1740288570140,4.37531,2778.9,2778.2,3.8742725]
[1740288570347,4.37531,2778.9,2778.2,3.59936]
[1740288571362,4.37531,2778.9,2778.3,3.59932]
[1740288571760,0.7767,2778.9,2778.3,3.59932]
[1740288572268,0.7767,2778.9,2778.3,7.19855]
[1740288572654,0.7767,2778.9,2778.4,3.59916]
[1740288573161,0.7767,2778.9,2778.7,7.1975]
[1740288573372,0.7767,2779.2,2778.8,3.59867]
[1740288573556,0.7767,2779.2,2778.7,3.5988]
[1740288574642,0.7767,2779.2,2778.6,0.7528]
[1740288574643,0.7767,2779.2,2778.6,3.59887]
[1740288574839,0.7767,2779.2,2778.7,3.59869]
[1740288576585,0.7767,2779.2,2778.7,7.19742]
[1740288576734,0.7767,2779.2,2778.7,7.1974]
[1740288577367,0.7767,2779.2,2778.7,3.59869]
[1740288577706,0.7767,2779.2,2778.7,7.19741]
[1740288578004,0.7767,2779.2,2778.7,3.59869]
[1740288578202,0.7767,2779.2,2778.7,7.19743]
[1740288578365,0.7767,2779.2,2778.7,7.19741]
[1740288579107,0.7767,2779.2,2778.7,3.59869]
[1740288579310,0.7767,2779.2,2778.8,3.59865]
[1740288579506,0.7767,2779.2,2778.7,3.59869]
[1740288580459,0.8052,2779.4,2778.8,0.814]
[1740288580687,0.8052,2779.6,2779.4,3.59782]
[1740288580890,0.8052,2779.6,2779.0,3.59841]
[1740288581191,0.8052,2779.6,2779.5,3.59776]
[1740288581372,0.8052,2780.0,2779.5,3.59776]
[1740288581575,0.24355,2779.9,2779.5,3.59776]
[1740288582563,0.24355,2779.9,2779.4,3.59782]
[1740288583176,0.8052,2779.8,2779.4,3.59782]
[1740288583977,0.8052,2779.8,2779.2,4.4121]
[1740288584179,4.40263,2779.8,2779.2,3.5981]
[1740288584569,3.59754,2779.7,2779.1,3.59821]
[1740288584770,4.40259,2779.8,2779.2,3.59814]
[1740288585079,3.59753,2779.7,2779.1,3.5982]
[1740288585397,3.59753,2779.7,2779.0,3.59831]
[1740288585578,0.8052,2779.6,2779.1,3.59828]
[1740288586076,0.8052,2779.6,2778.9,3.814]
[1740288586274,0.8052,2779.6,2779.0,3.59838]
[1740288586483,0.8052,2779.6,2779.1,3.59827]
[1740288588199,0.8052,2779.6,2779.2,3.59815]
[1740288589366,0.8052,2779.6,2779.3,3.59801]
[1740288593600,0.8046,2780.0,2778.9,8.160753]
[1740288593905,0.8046,2780.0,2779.5,3.59771]
[1740288594511,0.8046,2780.0,2779.0,0.8160753]
[1740288594708,0.8046,2779.8,2779.0,0.8160753]
[1740288594907,4.402,2779.8,2779.2,3.59807]
[1740288595290,0.8046,2779.8,2779.2,3.59807]
[1740288595607,0.8046,2779.8,2779.3,3.59802]
[1740288595851,0.8046,2779.8,2779.4,3.59785]
[1740288596799,0.71072572,2780.2,2779.3,3.33079444]
[1740288597000,1.6303,2780.5,2780.0,3.59704]
[1740288597607,1.6303,2780.5,2780.1,3.59699]
[1740288598714,1.6303,2781.0,2780.5,3.59646]
[1740288599109,5.22619,2781.0,2780.3,3.59666]
[1740288599313,5.22619,2781.0,2780.4,3.59659]
[1740288599883,5.22619,2781.0,2779.9,0.7635]
[1740288599884,3.33079444,2780.6,2779.9,0.7635]
[1740288600096,0.7527,2780.4,2779.8,3.59732]
[1740288600284,0.7527,2780.4,2779.8,7.19462]
[1740288600612,0.7557,2780.8,2780.3,3.59661]
[1740288600822,0.7557,2780.8,2780.1,0.7981]
[1740288601014,3.59647,2780.5,2780.0,3.59704]
[1740288601217,0.7557,2780.4,2780.0,3.59704]
[1740288601427,0.7557,2780.4,2779.8,3.59731]
[1740288601714,4.35231,2780.4,2779.8,3.59731]
[1740288603500,4.14597,2780.9,2780.2,3.59683]
[1740288603501,0.7557,2780.8,2780.2,3.59683]
[1740288603707,0.7557,2780.8,2780.3,3.59664]
[1740288604601,0.7557,2780.8,2780.3,3.59671]
[1740288604917,2.386,2781.0,2780.6,3.59622]
[1740288605687,5.98184,2781.0,2780.4,3.59651]
[1740288605990,5.98184,2781.0,2780.2,4.39488]
[1740288605991,3.596,2780.9,2780.2,4.39485]
[1740288606722,2.386,2781.0,2780.3,3.59673]
[1740288606886,2.386,2781.0,2780.5,3.5964]
[1740288608192,2.386,2781.0,2780.3,3.59673]
[1740288608193,5.98191,2781.0,2780.3,7.19337]
[1740288608406,3.59596,2780.9,2780.3,3.59664]
[1740288608902,6.92675444,2780.9,2780.3,3.59664]
[1740288609220,6.92675444,2780.9,2780.3,7.19331]
[1740288609420,3.33079444,2780.9,2780.3,3.59664]
[1740288609594,3.33079444,2780.9,2780.5,3.59645]
[1740288610307,0.7557,2781.0,2780.6,3.59633]
[1740288611303,0.7557,2781.0,2780.5,3.59645]
[1740288615330,4.35153,2781.0,2780.5,3.59645]
[1740288616329,0.7557,2781.0,2780.5,3.59641]
[1740288617118,0.7557,2781.0,2780.5,7.19281]
[1740288617339,0.7557,2781.0,2780.5,3.5964]
[1740288617544,0.7557,2781.0,2780.5,7.1928]
[1740288617755,0.7557,2781.0,2780.5,3.5964]
[1740288618954,4.35155,2781.0,2780.5,3.5964]
[1740288620953,0.7557,2781.0,2780.7,3.5962]
[1740288621151,0.7557,2781.0,2780.5,3.5964]
[1740288621755,4.35153,2781.0,2780.5,3.5964]
[1740288623553,0.7557,2781.0,2780.2,0.7981]
[1740288623756,0.7557,2781.0,2780.5,3.59641]
[1740288625031,0.7557,2781.0,2780.5,7.19282]
[1740288625363,0.7634,2781.4,2780.6,0.8125]
[1740288625563,3.59549,2781.3,2780.8,3.59602]
[1740288625753,3.59549,2781.3,2780.7,3.59613]
[1740288626129,7.19104,2781.3,2780.7,3.59613]
[1740288626325,3.59549,2781.3,2780.7,3.59613]
[1740288626562,3.59549,2781.3,2780.7,7.7050712]
[1740288626866,3.59549,2781.3,2780.7,4.1089212]
[1740288626867,1.61627796,2781.1,2780.7,4.1089212]
[1740288627080,1.61627796,2781.1,2780.7,7.7050612]
[1740288628161,1.61627796,2781.1,2780.7,4.1089212]
[1740288628674,3.59549,2781.3,2780.7,4.1089212]
[1740288628878,3.59549,2781.3,2780.8,0.49214212]
[1740288629076,0.7634,2781.1,2780.5,3.59637]
[1740288629277,3.59589,2781.0,2780.4,4.40908]
[1740288629782,4.35911,2781.1,2780.5,3.59637]
[1740288631172,0.7634,2781.1,2780.4,0.8125]
[1740288631488,0.7634,2781.1,2780.6,3.59633]
[1740288633189,0.7634,2781.1,2780.8,3.59607]
[1740288633893,1.6303,2781.5,2781.3,3.59531]
[1740288634048,0.7634,2781.7,2781.0,3.59576]
[1740288634248,4.09690303,2781.7,2781.1,0.359576]
[1740288634648,3.59532,2781.4,2781.0,0.8125]
[1740288635363,4.38952,2781.3,2780.8,0.8326]
[1740288635695,3.59559,2781.2,2780.8,0.8326]
[1740288636196,3.59559,2781.2,2780.8,4.42867]
[1740288636389,3.59534,2781.4,2780.9,3.59595]
[1740288636594,7.19074,2781.4,2781.0,0.442855]
[1740288636749,3.59534,2781.4,2781.0,0.442855]
[1740288638876,3.59555,2781.3,2781.0,0.442855]
[1740288639184,3.59557,2781.2,2780.8,0.8326]
[1740288639879,3.59572,2781.1,2780.8,0.8326]
[1740288640803,7.19101,2781.3,2780.8,4.42863]
[1740288641153,3.5955,2781.3,2780.8,4.42863]
[1740288642354,7.19101,2781.3,2780.8,4.42863]
[1740288642552,3.59558,2781.2,2780.9,1.102472]
[1740288643496,0.794,2781.6,2780.9,1.102472]
[1740288643654,4.38907,2781.6,2780.8,0.8326]
[1740288643857,4.38914,2781.6,2780.8,0.8326]
[1740288644051,3.5952,2781.5,2781.1,0.7668]
[1740288644799,3.59531,2781.4,2781.1,0.7668]
[1740288645171,3.59531,2781.4,2780.7,6.59611]
[1740288645172,3.59563,2781.2,2780.8,0.7668]
[1740288645395,3.59563,2781.2,2780.9,0.736291]
[1740288645556,3.59576,2781.1,2780.9,0.736291]
[1740288646192,3.59563,2781.2,2780.9,0.736291]
[1740288646697,3.59553,2781.3,2780.9,0.736291]
[1740288647668,3.59572,2781.1,2780.9,0.736291]
[1740288648102,3.59563,2781.2,2780.9,0.736291]
[1740288648272,6.92886303,2781.4,2780.9,0.736291]
[1740288648672,6.92886303,2781.4,2780.9,4.332201]
[1740288648990,3.59518,2781.5,2781.0,4.1056601]
[1740288649703,4.3891,2781.6,2781.1,3.59569]
[1740288650313,4.3891,2781.6,2781.0,0.5099001]
[1740288650477,4.3891,2781.6,2781.1,3.59568]
[1740288651305,4.3891,2781.6,2781.1,3.59566]
[1740288651510,3.33350303,2781.4,2780.8,0.7668]
[1740288651671,6.92888303,2781.4,2780.9,3.59593]
[1740288652619,1.61610936,2781.2,2780.9,3.59593]
[1740288653118,1.61610936,2781.2,2780.9,3.59588]
[1740288654878,1.61610936,2781.2,2781.0,3.59581]
[1740288655083,1.61610936,2781.4,2781.1,3.59569]
[1740288659084,1.61610936,2781.4,2781.2,3.59556]
[1740288660233,1.61610936,2781.4,2781.2,4.36026]
[1740288661083,0.794,2781.6,2781.2,0.7647]
[1740288661282,1.61610936,2781.9,2781.8,3.59479]
[1740288662215,0.02,2782.2,2782.0,3.59445]
[1740288662516,0.02,2782.2,2782.1,3.5944]
[1740288662681,0.02,2782.2,2782.1,4.3591]
[1740288664780,0.02,2782.2,2782.1,7.3591]
[1740288667111,0.02,2782.2,2782.1,0.7647]
[1740288667332,0.02,2782.2,2781.9,4.39435]
[1740288667517,4.12339611,2782.1,2781.5,0.7997]
[1740288667716,3.59463,2782.0,2781.5,1.29180827]
[1740288668142,7.71779611,2782.1,2781.5,8.48202827]
[1740288668363,4.3884,2782.1,2781.6,3.59504]
[1740288669734,4.3884,2782.1,2781.6,7.19001]
[1740288669931,0.02,2782.2,2781.6,3.59497]
[1740288670148,0.02,2782.2,2781.9,4.39426]
[1740288671467,0.02,2782.2,2781.9,0.7997]
[1740288672202,0.02,2782.2,2781.4,3.0]
[1740288672366,3.59479,2781.8,2781.5,0.7997]
[1740288673283,4.12339611,2782.1,2781.6,3.59504]
[1740288673487,3.59486,2781.8,2781.5,0.7997]
[1740288673702,3.59479,2781.9,2781.5,0.7997]
[1740288674294,3.59481,2781.8,2781.5,0.7997]
[1740288674824,3.59553,2781.3,2780.8,0.7997]
[1740288675036,3.59565,2781.2,2780.8,0.7997]
[1740288676035,3.59584,2781.0,2780.8,0.7997]
[1740288676221,3.59565,2781.2,2780.8,0.7997]
[1740288676420,3.59574,2781.1,2780.8,0.7997]
[1740288676624,3.59574,2781.1,2780.8,1.5393]
[1740288677235,3.59589,2781.0,2780.8,1.5393]
[1740288677818,3.59595,2780.9,2780.6,0.8214]
[1740288678016,3.59609,2780.8,2780.3,6.2114]
[1740288678218,3.59611,2780.8,2780.3,6.2114]
[1740288678420,3.59611,2780.8,2780.4,0.980815]
[1740288679849,3.59611,2780.8,2780.3,9.80811]
[1740288679850,3.59636,2780.6,2780.3,6.2114]
[1740288679993,3.5965,2780.5,2780.0,4.41851]
[1740288680820,6.92575611,2780.6,2779.7,6.1476]
[1740288680821,3.32939611,2780.6,2779.7,6.1476]
[1740288681185,3.59673,2780.3,2779.7,6.1476]
[1740288681384,3.597,2780.1,2779.7,6.1476]
[1740288681625,3.597,2780.1,2779.7,8.156516]
[1740288681991,3.59713,2780.0,2779.7,8.156516]
[1740288682239,3.59713,2780.0,2779.7,0.7576]
[1740288682859,3.59713,2780.0,2779.5,6.59776]
[1740288683027,3.59732,2779.9,2779.5,3.7576]
[1740288683223,3.59732,2779.9,2779.5,5.032146]
[1740288683443,3.32939611,2780.3,2779.5,5.032146]
[1740288683444,3.59682,2780.3,2779.8,3.59731]
[1740288683611,3.597,2780.1,2779.6,4.35514]
[1740288683813,3.59727,2779.9,2779.6,0.7576]
[1740288685558,3.32939611,2780.0,2779.3,0.7576]
[1740288685859,3.59775,2779.6,2779.3,0.7576]
[1740288686017,3.59786,2779.5,2779.0,0.7576]
[1740288686221,3.59786,2779.5,2779.1,0.795451]
[1740288686530,3.59815,2779.2,2779.1,0.795451]
[1740288686716,3.59803,2779.3,2779.0,0.7576]
[1740288686911,3.59817,2779.2,2778.8,3.7576]
[1740288687143,3.59817,2779.2,2778.8,0.7576]
[1740288687327,3.59803,2779.3,2778.8,0.7576]
[1740288687529,3.59817,2779.2,2778.8,3.7576]
[1740288687742,3.59817,2779.2,2778.8,4.49323]
[1740288688262,3.59802,2779.3,2778.8,4.49323]
[1740288688461,7.19616,2779.3,2778.8,4.49323]
[1740288689161,3.59823,2779.2,2778.8,0.7576]
[1740288689519,3.59831,2779.1,2778.8,0.7576]
[1740288690849,3.59831,2779.1,2778.6,6.59893]
[1740288692746,3.32939611,2778.8,2778.2,0.8267]
[1740288692947,3.59899,2778.6,2778.2,0.8267]
[1740288693766,3.5992,2778.4,2778.2,0.8267]
[1740288693974,3.59904,2778.6,2778.2,0.8267]
[1740288694382,3.59926,2778.4,2777.9,0.8267]
[1740288694946,6.92846611,2778.5,2777.9,0.8267]
[1740288695449,3.5992,2778.4,2777.9,0.8267]
[1740288697083,3.59919,2778.4,2777.9,0.8267]
[1740288697386,3.59938,2778.3,2777.9,0.8267]
[1740288697797,0.99087808,2779.4,2779.3,3.59802]
[1740288697994,5.84293876,2780.5,2779.6,0.7949]
[1740288698150,3.59644,2780.6,2779.6,0.7949]
[1740288698491,6.92555611,2780.8,2780.1,3.59688]
[1740288698685,6.92555611,2780.8,2780.2,3.59681]
[1740288698686,3.32939611,2780.8,2780.2,3.59681]
[1740288698891,0.7577,2780.9,2779.7,0.26763314]
[1740288699061,3.5957,2781.1,2780.5,3.59637]
[1740288699267,3.59557,2781.2,2780.6,3.59623]
[1740288699561,3.5957,2781.1,2780.5,4.39127]
[1740288699983,3.59585,2781.0,2780.5,4.39127]
[1740288700294,0.359585,2780.9,2780.5,4.39127]
[1740288700681,3.59617,2780.8,2780.1,3.59687]
[1740288700850,3.59617,2780.8,2780.2,3.59683]
[1740288701053,3.59636,2780.6,2780.0,0.7753]
[1740288701274,7.19282,2780.6,2780.0,4.37232]
[1740288701477,3.59636,2780.6,2780.1,3.0]
[1740288701814,3.59664,2780.4,2780.0,0.7753]
[1740288701993,4.39036,2780.6,2780.0,0.7753]
[1740288702194,3.59664,2780.4,2780.0,0.7753]
[1740288703574,4.39036,2780.6,2780.0,0.7753]
[1740288703770,3.59647,2780.5,2780.0,0.7753]
[1740288704571,0.794,2780.6,2780.0,4.37241]
[1740288704790,3.59648,2780.5,2780.0,4.3723]
[1740288705292,0.794,2780.6,2780.0,4.3723]
[1740288705487,4.39038,2780.6,2780.0,4.3723]
[1740288705687,0.794,2780.6,2780.0,0.7753]
[1740288705890,3.59649,2780.5,2780.0,0.7753]
[1740288706288,7.19307,2780.5,2780.0,0.7753]
[1740288706503,3.59649,2780.5,2780.0,0.7753]
[1740288708180,7.19304,2780.5,2780.0,0.7753]
[1740288708513,3.59649,2780.5,2780.0,0.7753]
[1740288709391,3.59649,2780.5,2780.0,4.3724]
[1740288710305,7.19304,2780.5,2780.0,4.3724]
[1740288710605,3.59649,2780.5,2780.0,4.3724]
[1740288711297,7.19304,2780.5,2780.0,4.3724]
[1740288712131,7.65480898,2780.5,2780.0,4.3724]
[1740288712331,7.65480898,2780.5,2780.0,0.7753]
[1740288712831,4.05823898,2780.5,2780.0,0.7753]
[1740288714330,4.05823898,2780.5,2780.0,4.37241]
[1740288717200,1.6303,2780.9,2779.8,3.0]
[1740288717521,3.59593,2781.0,2780.5,3.59646]
[1740288718237,3.59576,2781.1,2780.5,3.59646]
[1740288718537,3.59562,2781.2,2780.2,0.7517]
[1740288718836,3.5957,2781.1,2780.5,3.59647]
[1740288720433,7.628402,2781.2,2780.7,0.7858]
[1740288720601,4.032732,2781.2,2780.7,0.7858]
[1740288720796,0.9243521,2782.4,2780.9,7.71114611]
[1740288721042,0.1512521,2782.4,2782.0,3.59442]
[1740288721239,0.1512521,2782.4,2781.9,0.7858]
[1740288721240,0.1512521,2782.4,2781.9,4.38043]
[1740288721961,3.32939611,2782.1,2781.9,0.7858]
[1740288722101,3.595,2781.7,2781.4,0.7858]
[1740288722441,3.595,2781.7,2781.1,0.7858]
[1740288723145,3.59552,2781.3,2780.7,3.59618]
[1740288723301,3.59573,2781.1,2780.5,0.7858]
[1740288723504,3.59582,2781.0,2780.5,0.7858]
[1740288724312,3.59582,2781.0,2780.1,3.5969]
[1740288724532,3.32939611,2780.9,2780.2,0.7858]
[1740288724843,3.59609,2780.8,2780.2,0.7858]
[1740288725422,6.92546611,2780.9,2780.2,0.7858]
[1740288725735,3.59607,2780.9,2780.3,3.59666]
[1740288726322,3.59534,2781.4,2780.3,3.59666]
[1740288726323,0.7731,2781.4,2780.3,0.797938]
[1740288726526,4.10249611,2781.7,2781.2,3.59554]
[1740288726740,0.291,2782.2,2781.2,3.0]
[1740288726741,0.02,2782.2,2781.2,3.0]
[1740288726924,0.02,2782.2,2781.9,3.59455]
[1740288727137,0.02,2782.2,2782.0,4.38027]
[1740288727447,0.02,2782.2,2782.1,3.5944]
[1740288727748,0.02,2782.2,2782.0,0.7858]
[1740288727946,0.02,2782.2,2781.7,3.59485]
[1740288728251,0.02,2782.2,2781.6,0.7858]
[1740288728451,0.02,2782.2,2781.6,4.818931]
[1740288728751,0.02,2782.2,2781.6,4.818871]
[1740288728918,0.02,2782.2,2781.8,3.59476]
[1740288729926,0.02,2782.2,2781.7,3.5949]
[1740288730848,0.02,2782.2,2781.6,4.818821]
[1740288731056,3.59449,2782.1,2781.6,1.223891]
[1740288731244,3.59449,2782.1,2781.6,0.7858]
[1740288731462,3.61436,2782.2,2781.6,0.7858]
[1740288731668,3.61436,2782.2,2781.6,4.38076]
[1740288732176,0.02,2782.2,2781.7,3.59482]
[1740288732375,0.02,2782.2,2781.7,4.692378]
[1740288733879,0.02,2782.2,2781.8,3.59472]
[1740288734175,0.02,2782.2,2781.7,1.097558]
[1740288734374,0.02,2782.2,2781.7,4.692438]
[1740288734574,0.02,2782.2,2781.8,3.59477]
[1740288734779,0.02,2782.2,2781.7,4.692438]
[1740288735549,3.61429,2782.2,2781.7,4.692438]
[1740288736276,3.61429,2782.2,2781.7,1.097558]
[1740288737944,0.02,2782.2,2781.9,3.59458]
[1740288738143,0.02,2782.2,2781.9,4.40128]
[1740288738443,0.02,2782.2,2781.9,0.8067]
[1740288738784,0.02,2782.2,2781.9,4.40127]
[1740288739199,0.02,2782.2,2781.8,0.4692608]
[1740288739390,3.61434,2782.2,2781.7,4.40159]
[1740288740116,3.61434,2782.2,2781.8,3.59479]
[1740288741209,0.02,2782.2,2781.8,3.59473]
[1740288741769,0.02,2782.2,2781.7,0.8067]
[1740288741977,0.02,2782.2,2781.9,3.59454]
[1740288742176,0.02,2782.2,2781.9,4.394143]
[1740288742378,0.02,2782.2,2782.0,3.59451]
[1740288743015,0.02,2782.2,2781.9,0.799603]
[1740288743210,3.59448,2782.1,2781.7,0.8067]
[1740288743507,4.37134,2782.2,2781.7,3.59489]
[1740288744010,4.37134,2782.2,2781.7,3.59483]
[1740288745184,3.59454,2782.0,2781.5,3.59509]
[1740288745590,3.59454,2782.0,2781.6,3.59504]
[1740288745918,7.96572,2782.2,2781.6,4.694443]
[1740288746442,3.59443,2782.1,2781.6,4.694443]
[1740288747144,4.37134,2782.2,2781.6,1.099403]
[1740288747446,3.5944,2782.1,2781.6,1.099403]
[1740288747656,3.5944,2782.1,2781.6,4.694363]
[1740288748210,4.37134,2782.2,2781.6,4.694363]
[1740288748436,3.59441,2782.1,2781.6,4.694363]
[1740288748637,3.59441,2782.1,2781.7,0.8289453]
[1740288749414,3.59441,2782.1,2781.6,4.694363]
[1740288749613,4.37134,2782.2,2781.6,1.099403]
[1740288749827,3.5946,2782.0,2781.5,3.59508]
[1740288750052,3.59466,2781.9,2781.5,3.59508]
[1740288750262,0.777,2782.2,2781.5,3.59508]
[1740288750450,3.59454,2782.0,2781.5,3.59508]
[1740288750649,3.59454,2782.0,2781.5,7.19019]
[1740288750828,3.59454,2782.0,2781.5,4.694489]
[1740288751265,3.5944,2782.1,2781.6,3.59499]
[1740288752161,3.59462,2782.0,2781.5,1.099409]
[1740288752338,3.59464,2782.0,2781.5,1.099409]
[1740288752540,3.59453,2782.0,2781.6,4.39889]
[1740288752754,3.59453,2782.0,2781.6,5.2487199]
[1740288753062,7.18916,2782.0,2781.6,0.8039]
[1740288753460,3.59453,2782.0,2781.6,0.8039]
[1740288753634,3.59466,2781.9,2781.6,0.8039]
[1740288754166,3.59448,2782.1,2781.6,0.8039]
[1740288754626,3.59461,2782.0,2781.6,0.8039]
[1740288755026,3.59448,2782.1,2781.6,0.8039]
[1740288755245,3.59467,2781.9,2781.6,0.8039]
[1740288755763,3.3308466,2781.7,2780.9,0.7756]
[1740288755948,3.59595,2780.9,2780.6,0.7756]
[1740288756149,3.59621,2780.7,2780.6,0.7756]
[1740288756362,7.19237,2780.8,2780.6,0.7756]
[1740288756733,3.59617,2780.8,2780.6,0.7756]
[1740288757466,3.59602,2780.9,2780.6,0.7756]
[1740288757967,3.59621,2780.7,2780.4,0.7756]
[1740288758147,3.59621,2780.7,2780.4,2.051846]
[1740288758348,3.59611,2780.8,2780.4,2.051846]
[1740288759571,7.19228,2780.8,2780.4,2.051846]
[1740288759862,3.59611,2780.8,2780.4,2.051846]
[1740288760064,3.59645,2780.6,2780.4,0.7756]